[Event "46th GRE-chT Premier 2018"]
[Site "Rio Achaia"]
[Date "2018.07.11"]
[Round "3"]
[White "Salahidou, Reveka"]
[Black "Serpetsidaki, Eva"]
[Result "1-0"]
[ECO "B35"]
[WhiteElo "1955"]
[BlackElo "1591"]
[Annotator "NA"]
[PlyCount "73"]
[EventDate "2018.07.10"]
[EventType "team-tourn"]
[EventCountry "GRE"]
[SourceTitle "playchess.com"]
[Source "ChessBase"]
[SourceQuality "1"]
[TimeControl "40/5400+30:1800+30"]

1. e4 {[%emt 0:00:00]} c5 {[%emt 0:00:00]} 2. Nf3 {[%emt 0:00:00]} g6 {[%emt 0:00:00]} 3. d4 {[%emt 0:00:00]} cxd4 {[%emt 0:00:00]} 4. Nxd4 {[%emt 0:00:00]} Nc6 {[%emt 0:00:00]} 5. Nc3 {[%emt 0:00:08]} Bg7 {[%emt 0:00:00]} 6. Be3 {[%emt 0:00:08]} Nf6 {[%emt 0:00:00]} 7. Bc4 {[%emt 0:00:49]} Qa5 {[%emt 0:00:09]} 8. O-O {[%emt 0:03:39]} O-O {[%emt 0:00:09]} 9. Bb3 {[%emt 0:02:44]} d6 {[%emt 0:00:17]} 10. f3 {[%emt 0:01:47]} Bd7 {[%emt 0:00:48]} 11. Qd2 {[%emt 0:01:55]} Rfd8 {[%emt 0:01:18]} 12. Rad1 {[%emt 0:03:35]} Rac8 {[%emt 0:00:29]} 13. Qf2 {[%emt 0:01:48]} b6 {[%emt 0:03:02]} 14. Rfe1 {[%emt 0:06:41]} Ne5 {[%emt 0:10:56]} 15. Kh1 {[%emt 0:06:04]} Nc4 {[%emt 0:00:14]} 16. Bxc4 {[%emt 0:01:37]} Rxc4 {[%emt 0:00:11]} 17. Nb3 {[%emt 0:06:48]} Qa6 {[%emt 0:02:07]} 18. h3 {[%emt 0:16:54]} Qc8 {[%emt 0:01:59]} 19. Re2 {[%emt 0:13:47]} Be6 {[%emt 0:01:40]} 20. Nb5 {[%emt 0:02:49]} Qb7 {[%emt 0:06:22]} 21. e5 {[%emt 0:17:44]} Nd5 {[%emt 0:01:31]} 22. exd6 {[%emt 0:00:38]} exd6 {[%emt 0:00:08]} 23. Bg5 {[%emt 0:00:45]} Rd7 {[%emt 0:00:47]} 24. Rxe6 {[%emt 0:03:40]} fxe6 {[%emt 0:00:25]} 25. Qe2 {[%emt 0:00:03]} Qc6 {[%emt 0:19:08]} 26. Qxe6+ {[%emt 0:00:28]} Kf8 {[%emt 0:00:06]} 27. Rxd5 {[%emt 0:00:54]} Be5 {[%emt 0:00:11]} 28. Bh6+ {[%emt 0:02:43]} Bg7 {[%emt 0:00:07]} 29. Bxg7+ {[%emt 0:01:00]} Kxg7 {[%emt 0:00:06]} 30. Nxd6 {[%emt 0:00:46]} Rxc2 {[%emt 0:00:58]} 31. Nd4 {[%emt 0:03:17]} Rc1+ {[%emt 0:00:22]} 32. Kh2 {[%emt 0:00:03]} Qc7 {[%emt 0:04:10]} 33. f4 {[%emt 0:01:27]} Rh1+ {[%emt 0:00:27]} 34. Kxh1 {[%emt 0:01:39]} Qc1+ {[%emt 0:00:06]} 35. Kh2 {[%emt 0:00:04]} Qxf4+ {[%emt 0:00:12]} 36. Kg1 {[%emt 0:00:03]} Qc1+ {[%emt 0:00:52]} 37. Kf2 {[%emt 0:00:04]} 1-0

[Event "46th GRE-chT Premier 2018"]
[Site "Rio Achaia"]
[Date "2018.07.11"]
[Round "3"]
[White "Kolomvas, Ioannis"]
[Black "Ilandzis, Spyridon"]
[Result "0-1"]
[ECO "A01"]
[WhiteElo "1951"]
[BlackElo "1980"]
[Annotator "NA"]
[PlyCount "58"]
[EventDate "2018.07.10"]
[EventType "team-tourn"]
[EventCountry "GRE"]
[SourceTitle "playchess.com"]
[Source "ChessBase"]
[SourceQuality "1"]
[TimeControl "40/5400+30:1800+30"]

1. b3 {[%emt 0:00:00]} e5 {[%emt 0:00:42]} 2. Bb2 {[%emt 0:00:00]} Nc6 {[%emt 0:00:16]} 3. e3 {[%emt 0:00:00]} d5 {[%emt 0:00:53]} 4. Bb5 {[%emt 0:00:16]} Bd6 {[%emt 0:00:12]} 5. f4 {[%emt 0:00:11]} f6 {[%emt 0:01:03]} 6. Qh5+ {[%emt 0:03:46]} g6 {[%emt 0:00:13]} 7. Qh4 {[%emt 0:00:16]} Bd7 {[%emt 0:12:20]} 8. Nc3 {[%emt 0:05:14]} Nb4 {[%emt 0:09:38]} 9. fxe5 {[%emt 0:34:56]} fxe5 {[%emt 0:00:57]} 10. Bxd7+ {[%emt 0:02:24]} Qxd7 {[%emt 0:00:28]} 11. O-O-O {[%emt 0:05:55]} Ne7 {[%emt 0:03:00]} 12. Nf3 {[%emt 0:01:20]} O-O-O {[%emt 0:04:58]} 13. Nxe5 {[%emt 0:06:53]} Qf5 {[%emt 0:01:54]} 14. Nd3 {[%emt 0:01:43]} Nxd3+ {[%emt 0:02:03]} 15. cxd3 Qxd3 {[%emt 0:00:23]} 16. Qg4+ {[%emt 0:11:34]} Kb8 {[%emt 0:09:02]} 17. Rde1 {[%emt 0:04:39]} Nc6 {[%emt 0:05:51]} 18. a3 {[%emt 0:06:29]} Rhf8 {[%emt 0:07:42]} 19. Qe2 {[%emt 0:01:31]} Ne5 {[%emt 0:01:35]} 20. Ref1 {[%emt 0:07:44]} Qxe2 {[%emt 0:02:31]} 21. Nxe2 {[%emt 0:00:08]} Nd3+ {[%emt 0:00:15]} 22. Kc2 {[%emt 0:00:14]} Nf2 {[%emt 0:00:29]} 23. Nd4 {[%emt 0:04:02]} Nxh1 {[%emt 0:00:28]} 24. Rxh1 {[%emt 0:00:02]} Rf2 {[%emt 0:00:53]} 25. h4 {[%emt 0:01:25]} Rxg2 {[%emt 0:02:15]} 26. h5 {[%emt 0:00:16]} a6 {[%emt 0:02:15]} 27. hxg6 {[%emt 0:00:51]} hxg6 {[%emt 0:00:05]} 28. Rh7 {[%emt 0:00:59]} Re8 {[%emt 0:00:59]} 29. Kd3 {[%emt 0:00:40]} Be5 {[%emt 0:01:30]} 0-1

[Event "46th GRE-chT Premier 2018"]
[Site "Rio Achaia"]
[Date "2018.07.11"]
[Round "3"]
[White "Dimopoulos, Dimitrios"]
[Black "Goumas, Georgios"]
[Result "0-1"]
[ECO "B22"]
[WhiteElo "1944"]
[BlackElo "2384"]
[Annotator "NA"]
[PlyCount "84"]
[EventDate "2018.07.10"]
[EventType "team-tourn"]
[EventCountry "GRE"]
[SourceTitle "playchess.com"]
[Source "ChessBase"]
[SourceQuality "1"]
[TimeControl "40/5400+30:1800+30"]

1. e4 {[%emt 0:00:00]} c5 {[%emt 0:00:51]} 2. c3 {[%emt 0:00:00]} g6 {[%emt 0:00:19]} 3. d4 {[%emt 0:00:00]} cxd4 {[%emt 0:00:04]} 4. cxd4 {[%emt 0:00:02]} d5 {[%emt 0:00:06]} 5. exd5 {[%emt 0:01:02]} Nf6 {[%emt 0:00:07]} 6. Nc3 {[%emt 0:00:17]} Bg7 {[%emt 0:00:19]} 7. Nf3 {[%emt 0:00:56]} Nxd5 {[%emt 0:00:07]} 8. Qb3 {[%emt 0:03:06]} Nb6 {[%emt 0:00:35]} 9. Bb5+ {[%emt 0:04:03]} Bd7 {[%emt 0:00:36]} 10. Be3 {[%emt 0:09:05]} O-O {[%emt 0:00:21]} 11. Bxd7 {[%emt 0:02:40]} N8xd7 {[%emt 0:01:56]} 12. O-O {[%emt 0:00:18]} Nf6 {[%emt 0:00:15]} 13. Rac1 {[%emt 0:05:26]} Rc8 {[%emt 0:02:29]} 14. Rfd1 {[%emt 0:03:17]} Nfd5 {[%emt 0:04:09]} 15. Nxd5 {[%emt 0:10:50]} Qxd5 {[%emt 0:00:26]} 16. Qxd5 {[%emt 0:00:12]} Nxd5 {[%emt 0:00:08]} 17. Kf1 {[%emt 0:03:14]} Rfd8 {[%emt 0:02:26]} 18. Ke2 {[%emt 0:01:25]} Kf8 {[%emt 0:00:06]} 19. Rxc8 {[%emt 0:09:24]} Rxc8 {[%emt 0:00:06]} 20. Rc1 {[%emt 0:00:25]} Rd8 {[%emt 0:00:06]} 21. a3 {[%emt 0:01:50]} Ke8 {[%emt 0:00:38]} 22. Rc2 {[%emt 0:01:34]} h6 {[%emt 0:09:02]} 23. h3 {[%emt 0:07:27]} f5 {[%emt 0:03:03]} 24. Bd2 {[%emt 0:05:25]} g5 {[%emt 0:05:17]} 25. Ne5 {[%emt 0:08:46]} Nb6 {[%emt 0:09:41]} 26. Bc3 {[%emt 0:02:18]} Bxe5 {[%emt 0:02:47]} 27. dxe5 {[%emt 0:00:05]} Rc8 {[%emt 0:02:48]} 28. Kd1 {[%emt 0:08:06]} Kf7 {[%emt 0:01:08]} 29. g3 {[%emt 0:04:21]} Ke6 {[%emt 0:08:37]} 30. f4 {[%emt 0:02:58]} gxf4 {[%emt 0:03:19]} 31. gxf4 {[%emt 0:00:04]} Nd5 {[%emt 0:00:04]} 32. Bd2 {[%emt 0:02:01]} Rg8 {[%emt 0:00:05]} 33. Bc1 {[%emt 0:02:25]} Rg1+ {[%emt 0:00:30]} 34. Ke2 {[%emt 0:00:10]} Rh1 {[%emt 0:00:08]} 35. Kf3 {[%emt 0:02:13]} Rxh3+ {[%emt 0:00:59]} 36. Kg2 {[%emt 0:00:12]} Rd3 {[%emt 0:00:34]} 37. Rf2 {[%emt 0:00:49]} Rd1 {[%emt 0:09:56]} 38. Rc2 {[%emt 0:01:09]} Rd3 {[%emt 0:04:20]} 39. Rf2 {[%emt 0:00:24]} Kf7 {[%emt 0:10:28]} 40. Re2 {[%emt 0:00:00]} Kg6 {[%emt 0:00:00]} 41. Kh2 {[%emt 0:12:40]} Rf3 {[%emt 0:09:59]} 42. Kg2 {[%emt 0:00:24]} Rxf4 {[%emt 0:00:17]} 0-1

[Event "46th GRE-chT Premier 2018"]
[Site "Rio Achaia"]
[Date "2018.07.11"]
[Round "3"]
[White "Karaboikis, Spiridon"]
[Black "Spiliopoulos, Alexios"]
[Result "1/2-1/2"]
[ECO "A43"]
[WhiteElo "1942"]
[BlackElo "1943"]
[Annotator "NA"]
[PlyCount "64"]
[EventDate "2018.07.10"]
[EventType "team-tourn"]
[EventCountry "GRE"]
[SourceTitle "playchess.com"]
[Source "ChessBase"]
[SourceQuality "1"]
[TimeControl "40/5400+30:1800+30"]

1. d4 {[%emt 0:00:00]} c5 {[%emt 0:00:00]} 2. c3 {[%emt 0:00:00]} Qc7 {[%emt 0:01:23]} 3. Nf3 {[%emt 0:00:55]} e6 {[%emt 0:00:11]} 4. g3 {[%emt 0:00:16]} d5 {[%emt 0:00:07]} 5. Bf4 {[%emt 0:00:41]} Bd6 {[%emt 0:00:24]} 6. Bxd6 {[%emt 0:00:21]} Qxd6 {[%emt 0:00:02]} 7. Bg2 {[%emt 0:00:19]} Nf6 {[%emt 0:00:24]} 8. Nbd2 {[%emt 0:02:09]} O-O {[%emt 0:00:42]} 9. O-O {[%emt 0:07:11]} Nc6 {[%emt 0:02:07]} 10. Re1 {[%emt 0:04:36]} cxd4 {[%emt 0:03:18]} 11. cxd4 {[%emt 0:01:04]} Qb4 {[%emt 0:09:22]} 12. Nb3 {[%emt 0:03:32]} a5 {[%emt 0:06:59]} 13. a3 {[%emt 0:03:11]} Qb6 {[%emt 0:01:12]} 14. Qc2 {[%emt 0:07:30]} Ne4 {[%emt 0:13:46]} 15. e3 {[%emt 0:01:32]} Bd7 {[%emt 0:07:12]} 16. Nc5 {[%emt 0:05:48]} Nxc5 {[%emt 0:00:08]} 17. dxc5 {[%emt 0:00:03]} Qc7 18. Nd4 {[%emt 0:03:25]} Ne7 {[%emt 0:07:23]} 19. b4 {[%emt 0:04:16]} e5 20. Ne2 {[%emt 0:07:50]} b6 {[%emt 0:09:10]} 21. Nc3 {[%emt 0:02:46]} axb4 {[%emt 0:02:08]} 22. axb4 {[%emt 0:00:23]} Rxa1 {[%emt 0:00:09]} 23. Rxa1 {[%emt 0:00:07]} d4 {[%emt 0:02:04]} 24. exd4 {[%emt 0:02:33]} exd4 {[%emt 0:00:08]} 25. Nd5 {[%emt 0:06:39]} Nxd5 {[%emt 0:00:10]} 26. Bxd5 {[%emt 0:00:03]} bxc5 {[%emt 0:00:16]} 27. bxc5 {[%emt 0:04:05]} Bc6 {[%emt 0:06:47]} 28. Qe4 {[%emt 0:02:06]} Bxd5 {[%emt 0:00:17]} 29. Qxd5 {[%emt 0:00:07]} Qd8 {[%emt 0:00:43]} 30. Qxd8 {[%emt 0:03:13]} Rxd8 {[%emt 0:00:08]} 31. c6 {[%emt 0:00:34]} Rc8 {[%emt 0:00:54]} 32. Rb1 {[%emt 0:00:50]} Kf8 {[%emt 0:00:36]} 1/2-1/2

[Event "46th GRE-chT Premier 2018"]
[Site "Rio Achaia"]
[Date "2018.07.11"]
[Round "3"]
[White "Konstantelias, Konstantinos"]
[Black "Pappas, Apostolos"]
[Result "1-0"]
[ECO "A02"]
[WhiteElo "1942"]
[BlackElo "2034"]
[Annotator "NA"]
[PlyCount "85"]
[EventDate "2018.07.10"]
[EventType "team-tourn"]
[EventCountry "GRE"]
[SourceTitle "playchess.com"]
[Source "ChessBase"]
[SourceQuality "1"]
[TimeControl "40/5400+30:1800+30"]

1. f4 {[%emt 0:00:00]} g6 {[%emt 0:00:00]} 2. Nf3 {[%emt 0:00:00]} Bg7 {[%emt 0:00:00]} 3. g3 {[%emt 0:00:06]} c5 {[%emt 0:00:44]} 4. Bg2 {[%emt 0:00:07]} Nc6 {[%emt 0:00:06]} 5. O-O {[%emt 0:00:54]} d6 {[%emt 0:00:32]} 6. c3 {[%emt 0:03:34]} e5 {[%emt 0:02:29]} 7. d3 {[%emt 0:00:36]} Nge7 {[%emt 0:00:06]} 8. Na3 {[%emt 0:07:30]} h6 {[%emt 0:03:07]} 9. Bd2 {[%emt 0:05:47]} Be6 {[%emt 0:02:45]} 10. Qc2 {[%emt 0:12:44]} Rc8 {[%emt 0:00:42]} 11. e4 {[%emt 0:09:43]} Qd7 {[%emt 0:01:17]} 12. Rae1 {[%emt 0:01:55]} O-O {[%emt 0:14:37]} 13. Nc4 {[%emt 0:10:00]} b5 {[%emt 0:02:47]} 14. Ne3 {[%emt 0:00:08]} exf4 {[%emt 0:11:26]} 15. gxf4 {[%emt 0:00:19]} f5 {[%emt 0:03:45]} 16. Bc1 {[%emt 0:15:16]} b4 {[%emt 0:23:23]} 17. exf5 {[%emt 0:05:59]} Nxf5 {[%emt 0:02:03]} 18. Nxf5 {[%emt 0:01:19]} gxf5 {[%emt 0:02:40]} 19. Kh1 {[%emt 0:05:58]} bxc3 {[%emt 0:01:23]} 20. bxc3 {[%emt 0:00:08]} Kh7 {[%emt 0:03:52]} 21. Bb2 {[%emt 0:06:01]} Rg8 {[%emt 0:04:05]} 22. Qf2 {[%emt 0:02:13]} Bf6 {[%emt 0:01:17]} 23. c4 {[%emt 0:06:50]} Bxb2 {[%emt 0:01:31]} 24. Qxb2 {[%emt 0:00:02]} Rcf8 {[%emt 0:00:25]} 25. Bh3 {[%emt 0:03:43]} Qf7 {[%emt 0:04:15]} 26. Rxe6 {[%emt 0:00:32]} Qxe6 {[%emt 0:00:07]} 27. Qb7+ {[%emt 0:00:08]} Rg7 {[%emt 0:02:16]} 28. Qxc6 {[%emt 0:00:06]} Rfg8 {[%emt 0:01:43]} 29. Qd5 {[%emt 0:00:15]} Qe2 {[%emt 0:00:49]} 30. Qxf5+ {[%emt 0:00:34]} Kh8 {[%emt 0:00:07]} 31. Qf6 {[%emt 0:01:31]} Qe7 {[%emt 0:02:04]} 32. Qxh6+ {[%emt 0:00:56]} Rh7 {[%emt 0:00:13]} 33. Qe6 {[%emt 0:00:09]} Qb7 {[%emt 0:08:32]} 34. Qf6+ {[%emt 0:00:25]} Qg7 {[%emt 0:00:53]} 35. Qxg7+ {[%emt 0:00:19]} Rgxg7 {[%emt 0:00:12]} 36. Be6 {[%emt 0:00:29]} Rb7 {[%emt 0:00:17]} 37. Rf2 {[%emt 0:00:46]} Kg7 {[%emt 0:00:34]} 38. Ng5 {[%emt 0:01:03]} Rh4 {[%emt 0:00:17]} 39. Kg2 {[%emt 0:00:18]} Kf6 {[%emt 0:00:40]} 40. Kg3 {[%emt 0:00:00]} Rh8 {[%emt 0:00:00]} 41. Bd5 {[%emt 0:07:32]} Re7 {[%emt 0:03:07]} 42. Ne4+ {[%emt 0:00:22]} Kg7 {[%emt 0:00:30]} 43. f5 {[%emt 0:00:23]} 1-0

[Event "46th GRE-chT Premier 2018"]
[Site "Rio Achaia"]
[Date "2018.07.11"]
[Round "3"]
[White "Tsomis, Dimitrios"]
[Black "Georgiev, Krum"]
[Result "0-1"]
[ECO "B90"]
[WhiteElo "1938"]
[BlackElo "2330"]
[Annotator "NA"]
[PlyCount "88"]
[EventDate "2018.07.10"]
[EventType "team-tourn"]
[EventCountry "GRE"]
[SourceTitle "playchess.com"]
[Source "ChessBase"]
[SourceQuality "1"]
[TimeControl "40/5400+30:1800+30"]

1. e4 {[%emt 0:00:00]} c5 {[%emt 0:00:00]} 2. Nf3 {[%emt 0:00:13]} d6 {[%emt 0:00:00]} 3. d4 {[%emt 0:02:02]} cxd4 {[%emt 0:00:18]} 4. Nxd4 {[%emt 0:00:06]} Nf6 {[%emt 0:00:17]} 5. Nc3 {[%emt 0:00:13]} a6 {[%emt 0:01:37]} 6. f3 {[%emt 0:02:38]} e6 {[%emt 0:01:34]} 7. a4 {[%emt 0:02:14]} b6 {[%emt 0:04:31]} 8. Be3 {[%emt 0:01:20]} Be7 {[%emt 0:00:49]} 9. Qd2 {[%emt 0:01:31]} Bb7 {[%emt 0:03:15]} 10. Be2 {[%emt 0:01:11]} O-O {[%emt 0:00:48]} 11. O-O {[%emt 0:00:33]} Qc7 {[%emt 0:07:42]} 12. Rfd1 {[%emt 0:03:12]} Nc6 {[%emt 0:14:39]} 13. Nxc6 {[%emt 0:04:18]} Bxc6 {[%emt 0:00:12]} 14. Bf1 {[%emt 0:00:39]} Qb7 {[%emt 0:02:41]} 15. Qf2 {[%emt 0:02:37]} b5 {[%emt 0:01:07]} 16. axb5 {[%emt 0:02:55]} axb5 {[%emt 0:00:07]} 17. Bd3 {[%emt 0:07:13]} Rfc8 {[%emt 0:13:16]} 18. Ne2 {[%emt 0:03:21]} d5 {[%emt 0:06:18]} 19. e5 {[%emt 0:16:38]} Ne4 {[%emt 0:00:20]} 20. Qe1 {[%emt 0:13:25]} Nc5 {[%emt 0:02:20]} 21. Nd4 {[%emt 0:01:16]} Bd7 {[%emt 0:03:58]} 22. Bf1 {[%emt 0:04:22]} Na4 {[%emt 0:13:44]} 23. b3 {[%emt 0:00:45]} Nc3 {[%emt 0:00:40]} 24. Rxa8 {[%emt 0:00:26]} Qxa8 {[%emt 0:00:06]} 25. Ra1 {[%emt 0:00:23]} Qb8 {[%emt 0:00:17]} 26. f4 {[%emt 0:03:09]} b4 {[%emt 0:01:00]} 27. Bd3 {[%emt 0:00:52]} g6 {[%emt 0:00:49]} 28. Ne2 {[%emt 0:07:44]} Ne4 {[%emt 0:07:41]} 29. Bxe4 {[%emt 0:03:33]} dxe4 {[%emt 0:00:03]} 30. Qd2 {[%emt 0:01:14]} Bc6 {[%emt 0:00:54]} 31. Nd4 {[%emt 0:00:24]} Bb7 {[%emt 0:02:48]} 32. Nb5 {[%emt 0:04:35]} Bd5 {[%emt 0:03:19]} 33. Nd4 {[%emt 0:01:44]} Bc5 {[%emt 0:00:37]} 34. Ra2 {[%emt 0:02:14]} Qb6 {[%emt 0:01:07]} 35. Qf2 {[%emt 0:06:11]} Bb7 {[%emt 0:05:21]} 36. Ra1 {[%emt 0:00:52]} Qc7 {[%emt 0:00:52]} 37. Nb5 {[%emt 0:01:20]} Bxe3 {[%emt 0:01:17]} 38. Qxe3 {[%emt 0:00:03]} Qxc2 {[%emt 0:00:21]} 39. Nd6 {[%emt 0:00:31]} Qb2 {[%emt 0:00:50]} 40. Rf1 {[%emt 0:00:00]} Rc2 {[%emt 0:00:00]} 41. Qg3 {[%emt 0:01:39]} Bd5 {[%emt 0:06:49]} 42. Qg5 {[%emt 0:00:28]} h6 {[%emt 0:03:27]} 43. Qxh6 {[%emt 0:02:56]} Rxg2+ {[%emt 0:00:23]} 44. Kh1 {[%emt 0:00:04]} e3 0-1

[Event "46th GRE-chT Premier 2018"]
[Site "Rio Achaia"]
[Date "2018.07.11"]
[Round "3"]
[White "Laspas, Panagiotis"]
[Black "Vallianos, Gerasimos"]
[Result "1/2-1/2"]
[ECO "A59"]
[WhiteElo "1917"]
[BlackElo "1899"]
[Annotator "NA"]
[PlyCount "60"]
[EventDate "2018.07.10"]
[EventType "team-tourn"]
[EventCountry "GRE"]
[SourceTitle "playchess.com"]
[Source "ChessBase"]
[SourceQuality "1"]
[TimeControl "40/5400+30:1800+30"]

1. d4 {[%emt 0:05:52]} Nf6 {[%emt 0:00:00]} 2. c4 {[%emt 0:01:03]} c5 {[%emt 0:00:48]} 3. d5 {[%emt 0:00:19]} b5 {[%emt 0:01:13]} 4. cxb5 {[%emt 0:00:21]} a6 {[%emt 0:00:16]} 5. bxa6 {[%emt 0:00:19]} Bxa6 {[%emt 0:00:22]} 6. Nc3 {[%emt 0:00:18]} d6 {[%emt 0:00:26]} 7. e4 {[%emt 0:01:03]} Bxf1 {[%emt 0:00:23]} 8. Kxf1 {[%emt 0:00:05]} g6 {[%emt 0:00:25]} 9. Nf3 {[%emt 0:00:24]} Bg7 {[%emt 0:00:24]} 10. g3 {[%emt 0:00:20]} Nbd7 {[%emt 0:00:36]} 11. Kg2 {[%emt 0:00:36]} O-O {[%emt 0:00:18]} 12. a4 {[%emt 0:00:11]} Qb6 {[%emt 0:01:01]} 13. Qe2 {[%emt 0:00:57]} Rfb8 {[%emt 0:04:54]} 14. Nb5 {[%emt 0:03:08]} Ne8 {[%emt 0:09:02]} 15. Bg5 {[%emt 0:04:40]} Kf8 {[%emt 0:05:07]} 16. Bf4 {[%emt 0:12:49]} Nc7 {[%emt 0:01:30]} 17. e5 {[%emt 0:16:40]} Nxb5 {[%emt 0:06:13]} 18. axb5 {[%emt 0:00:48]} dxe5 {[%emt 0:02:44]} 19. Nxe5 {[%emt 0:01:23]} Nxe5 {[%emt 0:06:37]} 20. Bxe5 {[%emt 0:01:05]} Bxe5 {[%emt 0:01:51]} 21. Rxa8 {[%emt 0:25:01]} Rxa8 {[%emt 0:00:08]} 22. Qxe5 {[%emt 0:00:05]} f6 {[%emt 0:00:09]} 23. Qe3 {[%emt 0:05:09]} Qxb5 {[%emt 0:08:36]} 24. Re1 {[%emt 0:04:55]} Re8 {[%emt 0:04:28]} 25. Qe6 {[%emt 0:02:37]} Qb7 {[%emt 0:02:32]} 26. Rc1 {[%emt 0:05:06]} Qb5 {[%emt 0:11:51]} 27. Rc2 {[%emt 0:01:56]} Rd8 {[%emt 0:03:42]} 28. Qc6 {[%emt 0:02:38]} Qb3 {[%emt 0:02:24]} 29. Rxc5 {[%emt 0:01:21]} Qxb2 {[%emt 0:00:35]} 30. Qe6 {[%emt 0:01:00]} Qd4 {[%emt 0:01:46]} 1/2-1/2

[Event "46th GRE-chT Premier 2018"]
[Site "Rio Achaia"]
[Date "2018.07.11"]
[Round "3"]
[White "Betsakos, Konstantinos"]
[Black "Marinakis, Hristos"]
[Result "1/2-1/2"]
[ECO "A49"]
[WhiteElo "1913"]
[BlackElo "1942"]
[Annotator "NA"]
[PlyCount "67"]
[EventDate "2018.07.10"]
[EventType "team-tourn"]
[EventCountry "GRE"]
[SourceTitle "playchess.com"]
[Source "ChessBase"]
[SourceQuality "1"]
[TimeControl "40/5400+30:1800+30"]

1. d4 {[%emt 0:00:07]} Nf6 {[%emt 0:00:00]} 2. Nf3 {[%emt 0:00:12]} g6 {[%emt 0:00:19]} 3. g3 {[%emt 0:00:05]} Bg7 {[%emt 0:00:11]} 4. Bg2 {[%emt 0:00:05]} d6 {[%emt 0:00:18]} 5. O-O {[%emt 0:00:07]} O-O {[%emt 0:00:06]} 6. a4 {[%emt 0:00:05]} Nbd7 {[%emt 0:01:41]} 7. a5 {[%emt 0:00:14]} a6 {[%emt 0:02:03]} 8. Nc3 {[%emt 0:00:08]} e5 {[%emt 0:00:54]} 9. e4 {[%emt 0:00:14]} exd4 {[%emt 0:02:43]} 10. Nxd4 {[%emt 0:00:14]} Nc5 {[%emt 0:01:00]} 11. h3 {[%emt 0:01:47]} Re8 {[%emt 0:01:16]} 12. Re1 {[%emt 0:00:26]} Ne6 {[%emt 0:06:05]} 13. Nb3 {[%emt 0:03:49]} Rb8 {[%emt 0:07:29]} 14. Be3 {[%emt 0:02:38]} b6 {[%emt 0:03:09]} 15. axb6 {[%emt 0:12:53]} cxb6 {[%emt 0:00:06]} 16. Nd4 {[%emt 0:03:48]} Bb7 {[%emt 0:02:18]} 17. Nxe6 {[%emt 0:20:24]} Rxe6 {[%emt 0:00:08]} 18. Nd5 {[%emt 0:12:19]} Nxd5 {[%emt 0:07:19]} 19. exd5 {[%emt 0:01:24]} Re8 {[%emt 0:00:08]} 20. c3 {[%emt 0:08:47]} b5 {[%emt 0:01:36]} 21. Qd2 {[%emt 0:04:49]} Qc7 {[%emt 0:05:31]} 22. h4 {[%emt 0:04:52]} h5 {[%emt 0:04:56]} 23. Bh6 {[%emt 0:15:16]} Bxh6 {[%emt 0:14:47]} 24. Qxh6 {[%emt 0:00:06]} Qc5 {[%emt 0:00:11]} 25. Qg5 {[%emt 0:00:20]} b4 {[%emt 0:01:28]} 26. Be4 {[%emt 0:06:42]} Kg7 {[%emt 0:01:30]} 27. Re3 {[%emt 0:01:06]} Re5 {[%emt 0:01:20]} 28. Qf4 {[%emt 0:00:05]} Bxd5 {[%emt 0:01:33]} 29. Rxa6 {[%emt 0:00:55]} Bxe4 {[%emt 0:02:00]} 30. Rxe4 {[%emt 0:00:12]} bxc3 {[%emt 0:11:16]} 31. Rxe5 {[%emt 0:00:27]} dxe5 {[%emt 0:00:08]} 32. Qf6+ {[%emt 0:00:03]} Kg8 {[%emt 0:00:12]} 33. bxc3 {[%emt 0:00:04]} Qxc3 {[%emt 0:02:45]} 34. Ra7 {[%emt 0:01:11]} 1/2-1/2

[Event "46th GRE-chT Premier 2018"]
[Site "Rio Achaia"]
[Date "2018.07.11"]
[Round "3"]
[White "Koutsidi, Amalia"]
[Black "Liapi Zenebisi, Irini"]
[Result "0-1"]
[ECO "B43"]
[WhiteElo "1911"]
[BlackElo "1788"]
[Annotator "NA"]
[PlyCount "78"]
[EventDate "2018.07.10"]
[EventType "team-tourn"]
[EventCountry "GRE"]
[SourceTitle "playchess.com"]
[Source "ChessBase"]
[SourceQuality "1"]
[TimeControl "40/5400+30:1800+30"]

1. e4 {[%emt 0:00:00]} c5 {[%emt 0:00:00]} 2. Nf3 {[%emt 0:00:07]} e6 {[%emt 0:00:00]} 3. d4 {[%emt 0:00:03]} cxd4 {[%emt 0:00:00]} 4. Nxd4 {[%emt 0:00:04]} a6 {[%emt 0:00:00]} 5. Nc3 {[%emt 0:00:06]} Qc7 {[%emt 0:00:00]} 6. Bd3 {[%emt 0:00:23]} Bc5 {[%emt 0:05:52]} 7. Nb3 {[%emt 0:02:08]} Ba7 {[%emt 0:00:06]} 8. O-O {[%emt 0:03:34]} Nf6 {[%emt 0:04:06]} 9. Qe2 {[%emt 0:04:04]} Nc6 {[%emt 0:00:13]} 10. Be3 {[%emt 0:02:30]} O-O {[%emt 0:03:11]} 11. Bxa7 {[%emt 0:01:29]} Rxa7 {[%emt 0:00:06]} 12. f4 {[%emt 0:01:57]} d6 {[%emt 0:00:09]} 13. g4 {[%emt 0:05:06]} b5 {[%emt 0:12:08]} 14. g5 {[%emt 0:01:55]} Ne8 {[%emt 0:00:45]} 15. Qh5 {[%emt 0:05:01]} g6 {[%emt 0:06:03]} 16. Qh6 {[%emt 0:02:49]} f5 {[%emt 0:00:09]} 17. exf5 {[%emt 0:11:43]} gxf5 {[%emt 0:03:50]} 18. Rae1 {[%emt 0:12:11]} Qb6+ {[%emt 0:04:35]} 19. Kg2 {[%emt 0:06:51]} Nc7 {[%emt 0:22:04]} 20. Rf3 {[%emt 0:06:09]} Nd8 {[%emt 0:01:26]} 21. Rh3 {[%emt 0:02:09]} Ne8 {[%emt 0:02:04]} 22. Rg1 {[%emt 0:10:02]} Rg7 {[%emt 0:01:34]} 23. Kf1 {[%emt 0:03:20]} Nf7 {[%emt 0:08:49]} 24. Qh4 {[%emt 0:05:06]} Nh8 {[%emt 0:06:59]} 25. Rf3 {[%emt 0:09:47]} Bb7 {[%emt 0:01:41]} 26. Rf2 {[%emt 0:00:19]} Ng6 {[%emt 0:00:39]} 27. Qg3 {[%emt 0:00:18]} e5 {[%emt 0:04:00]} 28. fxe5 {[%emt 0:00:45]} f4 {[%emt 0:00:06]} 29. Qg4 {[%emt 0:01:00]} dxe5 {[%emt 0:00:08]} 30. Be4 {[%emt 0:00:43]} b4 {[%emt 0:04:54]} 31. Bxb7 {[%emt 0:02:15]} Qxb7 {[%emt 0:00:04]} 32. Qe6+ {[%emt 0:00:31]} Kh8 {[%emt 0:00:16]} 33. Nd5 {[%emt 0:00:26]} Nc7 {[%emt 0:01:56]} 34. Nxc7 {[%emt 0:00:19]} Qxc7 {[%emt 0:00:04]} 35. Qd5 {[%emt 0:01:35]} Rd7 {[%emt 0:02:22]} 36. Qe4 {[%emt 0:00:18]} Rfd8 {[%emt 0:03:36]} 37. Re2 {[%emt 0:00:35]} a5 {[%emt 0:01:36]} 38. Kg2 {[%emt 0:00:42]} a4 {[%emt 0:00:30]} 39. Nc1 {[%emt 0:00:28]} Rd4 {[%emt 0:00:12]} 0-1